[Event "Titled Tuesday Blitz May 16 Early 2023"]
[White "Baches Garcia, Guillermo"]
[Black "Gritsenko, Nikolai"]
[WhiteFideId "2209764"]
[BlackFideId "14112493"]
[WhiteElo "2484"]
[BlackElo "2389"]
[Result "1-0"]
[Round "11"]
[TimeControl "180+2"]
[Date "2023.05.16"]
[WhiteClock "0:00:08"]
[BlackClock "0:00:19"]

1. e4 {[%clk 0:03:00]}  f6 {[%clk 0:02:59]} 2. d4 {[%clk 0:03:00]}  c6 {[%clk 0:02:59]} 3. c4 {[%clk 0:02:57]}  Na6 {[%clk 0:02:57]} 4. Nc3 {[%clk 0:02:56]}  g6 {[%clk 0:02:56]} 5. f4 {[%clk 0:02:53]}  Nh6 {[%clk 0:02:55]} 6. Nf3 {[%clk 0:02:53]}  d6 {[%clk 0:02:54]} 7. Bd3 {[%clk 0:02:52]}  Bg7 {[%clk 0:02:53]} 8. O-O {[%clk 0:02:49]}  O-O {[%clk 0:02:48]} 9. Be3 {[%clk 0:02:47]}  e5 {[%clk 0:02:48]} 10. fxe5 {[%clk 0:02:45]}  dxe5 {[%clk 0:02:43]} 11. d5 {[%clk 0:02:36]}  Ng4 {[%clk 0:02:40]} 12. Qe2 {[%clk 0:02:35]}  Nxe3 {[%clk 0:02:30]} 13. Qxe3 {[%clk 0:02:35]}  Qb6 {[%clk 0:01:59]} 14. Qf2 {[%clk 0:02:10]}  Nc5 {[%clk 0:01:48]} 15. Rad1 {[%clk 0:01:57]}  a5 {[%clk 0:01:45]} 16. Bb1 {[%clk 0:01:52]}  f5 {[%clk 0:01:34]} 17. Kh1 {[%clk 0:01:46]}  f4 {[%clk 0:01:30]} 18. d6 {[%clk 0:01:39]}  Bd7 {[%clk 0:01:27]} 19. b3 {[%clk 0:01:28]}  h6 {[%clk 0:01:23]} 20. Bc2 {[%clk 0:01:22]}  g5 {[%clk 0:01:13]} 21. a3 {[%clk 0:01:06]}  Ra6 {[%clk 0:01:04]} 22. Rb1 {[%clk 0:00:59]}  Ne6 {[%clk 0:01:00]} 23. Qd2 {[%clk 0:00:50]}  g4 {[%clk 0:00:50]} 24. Nh4 {[%clk 0:00:44]}  Nd4 {[%clk 0:00:49]} 25. Na4 {[%clk 0:00:40]}  Qd8 {[%clk 0:00:47]} 26. Nf5 {[%clk 0:00:32]}  b6 {[%clk 0:00:47]} 27. Nxd4 {[%clk 0:00:25]}  exd4 {[%clk 0:00:46]} 28. Rxf4 {[%clk 0:00:20]}  Rxf4 {[%clk 0:00:36]} 29. Qxf4 {[%clk 0:00:20]}  Qg5 {[%clk 0:00:36]} 30. Qxg5 {[%clk 0:00:16]}  hxg5 {[%clk 0:00:36]} 31. c5 {[%clk 0:00:16]}  b5 {[%clk 0:00:30]} 32. Nb6 {[%clk 0:00:16]}  Be6 {[%clk 0:00:24]} 33. d7 {[%clk 0:00:14]}  Bf6 {[%clk 0:00:24]} 34. e5 {[%clk 0:00:12]}  Bd8 {[%clk 0:00:23]} 35. Rd1 {[%clk 0:00:11]}  Kf7 {[%clk 0:00:13]} 36. Rxd4 {[%clk 0:00:11]}  Ke7 {[%clk 0:00:14]} 37. Nc8+ {[%clk 0:00:08]}  Kf8 {[%clk 0:00:13]} 38. h3 {[%clk 0:00:04]}  g3 {[%clk 0:00:12]} 39. Kg1 {[%clk 0:00:03]}  b4 {[%clk 0:00:10]} 40. a4 {[%clk 0:00:03]}  Kf7 {[%clk 0:00:09]} 41. Kf1 {[%clk 0:00:03]}  Ra8 {[%clk 0:00:08]} 42. Ke2 {[%clk 0:00:03]}  Bc7 {[%clk 0:00:09]} 43. Kf3 {[%clk 0:00:02]}  Bxe5 {[%clk 0:00:05]} 44. d8=Q {[%clk 0:00:02]}  Bxd4 {[%clk 0:00:05]} 45. Qxd4 {[%clk 0:00:02]}  Rxc8 {[%clk 0:00:06]} 46. Qe5 {[%clk 0:00:02]}  Ke7 {[%clk 0:00:06]} 47. Kxg3 {[%clk 0:00:02]}  Rf8 {[%clk 0:00:07]} 48. Be4 {[%clk 0:00:02]}  Rf4 {[%clk 0:00:07]} 49. Qd6+ {[%clk 0:00:02]}  Kf7 {[%clk 0:00:08]} 50. Bxc6 {[%clk 0:00:03]}  Kf6 {[%clk 0:00:09]} 51. Bd7 {[%clk 0:00:03]}  Re4 {[%clk 0:00:09]} 52. c6 {[%clk 0:00:04]}  Re3+ {[%clk 0:00:09]} 53. Kh2 {[%clk 0:00:03]}  Re5 {[%clk 0:00:10]} 54. c7 {[%clk 0:00:04]}  Rd5 {[%clk 0:00:10]} 55. Qxd5 {[%clk 0:00:03]}  Kg7 {[%clk 0:00:11]} 56. c8=Q {[%clk 0:00:04]}  Bxd5 {[%clk 0:00:11]} 57. Qc5 {[%clk 0:00:04]}  Kf6 {[%clk 0:00:12]} 58. Qxa5 {[%clk 0:00:04]}  Ke5 {[%clk 0:00:13]} 59. Qxb4 {[%clk 0:00:05]}  Bxb3 {[%clk 0:00:13]} 60. Qb5+ {[%clk 0:00:05]}  Kf6 {[%clk 0:00:14]} 61. Qxb3 {[%clk 0:00:05]}  Ke7 {[%clk 0:00:14]} 62. Qb5 {[%clk 0:00:06]}  Kd8 {[%clk 0:00:15]} 63. a5 {[%clk 0:00:07]}  Kc7 {[%clk 0:00:15]} 64. a6 {[%clk 0:00:07]}  Kd6 {[%clk 0:00:16]} 65. a7 {[%clk 0:00:08]}  Ke7 {[%clk 0:00:17]} 66. a8=Q {[%clk 0:00:08]}  g4 {[%clk 0:00:16]} 67. Qad5 {[%clk 0:00:08]}  g3+ {[%clk 0:00:17]} 68. Kxg3 {[%clk 0:00:08]}  Kf6 {[%clk 0:00:18]} 69. Qe6+ {[%clk 0:00:08]}  Kg7 {[%clk 0:00:18]} 70. Qg5+ {[%clk 0:00:09]}  Kf8 {[%clk 0:00:19]} 71. Qge7# {[%clk 0:00:08]} 1-0


[Site "https://www.chess.com"]

[Event "Titled Tuesday Blitz May 16 Early 2023"]
[White "Begunov, Konstantin"]
[Black "Camilla_Lee"]
[WhiteFideId "4118510"]
[WhiteElo "2050"]
[BlackElo "2593"]
[Result "0-1"]
[Round "11"]
[TimeControl "180+2"]
[Date "2023.05.16"]
[WhiteClock "0:00:00"]
[BlackClock "0:00:38"]

1. d4 {[%clk 0:02:57]}  Nf6 {[%clk 0:02:58]} 2. c4 {[%clk 0:02:57]}  g6 {[%clk 0:02:57]} 3. f3 {[%clk 0:02:57]}  d5 {[%clk 0:02:52]} 4. cxd5 {[%clk 0:02:58]}  Nxd5 {[%clk 0:02:53]} 5. e4 {[%clk 0:02:58]}  Nb6 {[%clk 0:02:53]} 6. Be3 {[%clk 0:02:59]}  Bg7 {[%clk 0:02:54]} 7. Nc3 {[%clk 0:02:59]}  O-O {[%clk 0:02:53]} 8. Qd2 {[%clk 0:03:00]}  Nc6 {[%clk 0:02:53]} 9. O-O-O {[%clk 0:03:00]}  e5 {[%clk 0:02:53]} 10. d5 {[%clk 0:03:01]}  Nd4 {[%clk 0:02:54]} 11. Nb5 {[%clk 0:03:01]}  Nxb5 {[%clk 0:02:27]} 12. Bxb5 {[%clk 0:03:02]}  a6 {[%clk 0:02:28]} 13. Be2 {[%clk 0:03:01]}  Bd7 {[%clk 0:02:19]} 14. h4 {[%clk 0:02:57]}  c6 {[%clk 0:02:15]} 15. dxc6 {[%clk 0:02:38]}  Qc7 {[%clk 0:02:05]} 16. Bxb6 {[%clk 0:02:21]}  Qxc6+ {[%clk 0:02:03]} 17. Kb1 {[%clk 0:02:19]}  Qxb6 {[%clk 0:02:02]} 18. Qxd7 {[%clk 0:02:14]}  Rfd8 {[%clk 0:02:02]} 19. Qa4 {[%clk 0:02:13]}  Qf2 {[%clk 0:01:58]} 20. Qc2 {[%clk 0:00:46]}  Rac8 {[%clk 0:01:20]} 21. Rxd8+ {[%clk 0:00:39]}  Rxd8 {[%clk 0:01:21]} 22. Nh3 {[%clk 0:00:23]}  Qxg2 {[%clk 0:01:17]} 23. Rd1 {[%clk 0:00:20]}  Rxd1+ {[%clk 0:01:13]} 24. Qxd1 {[%clk 0:00:20]}  Qxh3 {[%clk 0:01:14]} 25. Qd8+ {[%clk 0:00:18]}  Bf8 {[%clk 0:01:14]} 26. Bc4 {[%clk 0:00:16]}  Qxf3 {[%clk 0:01:09]} 27. Qd5 {[%clk 0:00:11]}  Qf4 {[%clk 0:01:03]} 28. Qxb7 {[%clk 0:00:09]}  Kg7 {[%clk 0:00:58]} 29. a4 {[%clk 0:00:09]}  a5 {[%clk 0:00:55]} 30. Ka2 {[%clk 0:00:09]}  Bc5 {[%clk 0:00:48]} 31. Qc7 {[%clk 0:00:08]}  Bd4 {[%clk 0:00:47]} 32. Qxa5 {[%clk 0:00:00]}  Qxe4 {[%clk 0:00:38]} 0-1


[Site "https://www.chess.com"]

[Event "Titled Tuesday Blitz May 16 Early 2023"]
[White "Sharapov, Evgeny"]
[Black "Kuznetsov, Mikhail"]
[WhiteFideId "14103133"]
[BlackFideId "4117190"]
[WhiteElo "2367"]
[BlackElo "1981"]
[Result "1-0"]
[Round "11"]
[TimeControl "180+2"]
[Date "2023.05.16"]
[WhiteClock "0:00:24"]
[BlackClock "0:00:11"]

1. e4 {[%clk 0:02:59]}  c6 {[%clk 0:03:00]} 2. d4 {[%clk 0:02:59]}  d5 {[%clk 0:03:00]} 3. e5 {[%clk 0:03:00]}  Bf5 {[%clk 0:02:59]} 4. Be3 {[%clk 0:02:59]}  e6 {[%clk 0:02:57]} 5. c4 {[%clk 0:02:59]}  Ne7 {[%clk 0:02:53]} 6. Nc3 {[%clk 0:02:59]}  dxc4 {[%clk 0:02:51]} 7. Bxc4 {[%clk 0:02:58]}  Nd5 {[%clk 0:02:52]} 8. Nge2 {[%clk 0:02:53]}  Nd7 {[%clk 0:02:47]} 9. O-O {[%clk 0:02:53]}  Be7 {[%clk 0:02:45]} 10. Ng3 {[%clk 0:02:50]}  Bg6 {[%clk 0:02:43]} 11. Nce4 {[%clk 0:02:47]}  O-O {[%clk 0:02:40]} 12. Qg4 {[%clk 0:02:41]}  Rc8 {[%clk 0:02:37]} 13. Bg5 {[%clk 0:02:32]}  Bxg5 {[%clk 0:02:26]} 14. Nxg5 {[%clk 0:02:32]}  N7b6 {[%clk 0:02:17]} 15. Bb3 {[%clk 0:02:29]}  c5 {[%clk 0:02:15]} 16. dxc5 {[%clk 0:02:22]}  Rxc5 {[%clk 0:02:11]} 17. h4 {[%clk 0:02:22]}  Ne7 {[%clk 0:01:34]} 18. h5 {[%clk 0:02:07]}  Bf5 {[%clk 0:01:34]} 19. Nxf5 {[%clk 0:02:03]}  Nxf5 {[%clk 0:01:33]} 20. Nxe6 {[%clk 0:01:54]}  fxe6 {[%clk 0:01:33]} 21. Bxe6+ {[%clk 0:01:53]}  Kh8 {[%clk 0:01:33]} 22. Bxf5 {[%clk 0:01:53]}  Rxe5 {[%clk 0:01:34]} 23. Rad1 {[%clk 0:01:44]}  Qf6 {[%clk 0:01:32]} 24. Bb1 {[%clk 0:01:38]}  Rg5 {[%clk 0:01:30]} 25. Qe4 {[%clk 0:01:15]}  Rxh5 {[%clk 0:01:13]} 26. Rd3 {[%clk 0:00:51]}  Rh4 {[%clk 0:00:58]} 27. Rf3 {[%clk 0:00:41]}  Rxe4 {[%clk 0:00:39]} 28. Rxf6 {[%clk 0:00:41]}  Rxf6 {[%clk 0:00:37]} 29. Bxe4 {[%clk 0:00:41]}  Rf7 {[%clk 0:00:37]} 30. Rd1 {[%clk 0:00:40]}  g6 {[%clk 0:00:37]} 31. Rd8+ {[%clk 0:00:38]}  Kg7 {[%clk 0:00:37]} 32. Rb8 {[%clk 0:00:37]}  Nc4 {[%clk 0:00:37]} 33. Bd5 {[%clk 0:00:31]}  Rc7 {[%clk 0:00:26]} 34. Bxc4 {[%clk 0:00:29]}  Rxc4 {[%clk 0:00:27]} 35. Rxb7+ {[%clk 0:00:30]}  Kh6 {[%clk 0:00:28]} 36. Rxa7 {[%clk 0:00:29]}  Rc1+ {[%clk 0:00:28]} 37. Kh2 {[%clk 0:00:29]}  Rc2 {[%clk 0:00:29]} 38. Rb7 {[%clk 0:00:29]}  Rxf2 {[%clk 0:00:29]} 39. a4 {[%clk 0:00:30]}  Kg5 {[%clk 0:00:28]} 40. a5 {[%clk 0:00:29]}  h5 {[%clk 0:00:27]} 41. a6 {[%clk 0:00:29]}  Rf6 {[%clk 0:00:21]} 42. a7 {[%clk 0:00:28]}  Ra6 {[%clk 0:00:20]} 43. b4 {[%clk 0:00:28]}  h4 {[%clk 0:00:20]} 44. Rb5+ {[%clk 0:00:27]}  Kg4 {[%clk 0:00:18]} 45. Ra5 {[%clk 0:00:27]}  Rxa7 {[%clk 0:00:08]} 46. Rxa7 {[%clk 0:00:26]}  g5 {[%clk 0:00:09]} 47. b5 {[%clk 0:00:26]}  Kh5 {[%clk 0:00:08]} 48. b6 {[%clk 0:00:26]}  g4 {[%clk 0:00:09]} 49. b7 {[%clk 0:00:26]}  g3+ {[%clk 0:00:10]} 50. Kh3 {[%clk 0:00:26]}  Kg5 {[%clk 0:00:09]} 51. b8=Q {[%clk 0:00:26]}  Kf5 {[%clk 0:00:09]} 52. Qb5+ {[%clk 0:00:25]}  Ke4 {[%clk 0:00:10]} 53. Ra4+ {[%clk 0:00:24]}  Ke3 {[%clk 0:00:09]} 54. Qb3+ {[%clk 0:00:24]}  Kf2 {[%clk 0:00:10]} 55. Ra2+ {[%clk 0:00:24]}  Kg1 {[%clk 0:00:11]} 56. Qb1# {[%clk 0:00:24]} 1-0


[Site "https://www.chess.com"]

[Event "Titled Tuesday Blitz May 16 Early 2023"]
[White "Yosha_Iglesias"]
[Black "Shvedova, Alexandra"]
[BlackFideId "54154782"]
[WhiteElo "2415"]
[BlackElo "1973"]
[Result "0-1"]
[Round "11"]
[TimeControl "180+2"]
[Date "2023.05.16"]
[WhiteClock "0:00:00"]
[BlackClock "0:00:26"]

1. d4 {[%clk 0:03:00]}  Nf6 {[%clk 0:02:59]} 2. Nf3 {[%clk 0:03:00]}  d5 {[%clk 0:02:59]} 3. e3 {[%clk 0:03:00]}  c6 {[%clk 0:02:54]} 4. c4 {[%clk 0:03:00]}  e6 {[%clk 0:02:43]} 5. Nbd2 {[%clk 0:02:58]}  Be7 {[%clk 0:02:39]} 6. Bd3 {[%clk 0:02:58]}  dxc4 {[%clk 0:02:37]} 7. Nxc4 {[%clk 0:02:57]}  b5 {[%clk 0:02:35]} 8. Nce5 {[%clk 0:02:57]}  Bb7 {[%clk 0:02:33]} 9. O-O {[%clk 0:02:46]}  a6 {[%clk 0:02:33]} 10. Bd2 {[%clk 0:02:43]}  c5 {[%clk 0:02:27]} 11. dxc5 {[%clk 0:02:33]}  Bxc5 {[%clk 0:02:27]} 12. Rc1 {[%clk 0:02:28]}  Bd6 {[%clk 0:02:20]} 13. Bc3 {[%clk 0:02:07]}  O-O {[%clk 0:02:18]} 14. Ng5 {[%clk 0:02:02]}  h6 {[%clk 0:01:59]} 15. Ngxf7 {[%clk 0:01:05]}  Rxf7 {[%clk 0:01:58]} 16. Nxf7 {[%clk 0:01:06]}  Kxf7 {[%clk 0:01:59]} 17. e4 {[%clk 0:01:04]}  Nbd7 {[%clk 0:01:50]} 18. f4 {[%clk 0:00:45]}  Bxe4 {[%clk 0:01:34]} 19. Bxe4 {[%clk 0:00:34]}  Nxe4 {[%clk 0:01:34]} 20. f5 {[%clk 0:00:26]}  e5 {[%clk 0:01:29]} 21. Qh5+ {[%clk 0:00:22]}  Kg8 {[%clk 0:01:22]} 22. Kh1 {[%clk 0:00:17]}  Ndf6 {[%clk 0:01:20]} 23. Qg6 {[%clk 0:00:14]}  Qe8 {[%clk 0:01:16]} 24. Qxe8+ {[%clk 0:00:11]}  Rxe8 {[%clk 0:01:17]} 25. Ba5 {[%clk 0:00:12]}  Bc5 {[%clk 0:01:11]} 26. g3 {[%clk 0:00:10]}  Be3 {[%clk 0:01:09]} 27. Rc7 {[%clk 0:00:09]}  Nd5 {[%clk 0:01:06]} 28. Rb7 {[%clk 0:00:08]}  Bd4 {[%clk 0:01:01]} 29. b3 {[%clk 0:00:06]}  Ne3 {[%clk 0:01:01]} 30. Rc1 {[%clk 0:00:06]}  Nf2+ {[%clk 0:00:58]} 31. Kg1 {[%clk 0:00:06]}  Nxf5 {[%clk 0:00:55]} 32. Kg2 {[%clk 0:00:04]}  Nd3 {[%clk 0:00:54]} 33. Rcc7 {[%clk 0:00:04]}  e4 {[%clk 0:00:51]} 34. g4 {[%clk 0:00:04]}  Ne3+ {[%clk 0:00:50]} 35. Kh3 {[%clk 0:00:03]}  Be5 {[%clk 0:00:42]} 36. Rd7 {[%clk 0:00:01]}  Nf2+ {[%clk 0:00:37]} 37. Kh4 {[%clk 0:00:01]}  Ng2+ {[%clk 0:00:37]} 38. Kh5 {[%clk 0:00:01]}  Nf4+ {[%clk 0:00:37]} 39. Kh4 {[%clk 0:00:02]}  e3 {[%clk 0:00:33]} 40. Bc7 {[%clk 0:00:01]}  Bf6+ {[%clk 0:00:30]} 41. Kg3 {[%clk 0:00:01]}  Ne2+ {[%clk 0:00:30]} 42. Kg2 {[%clk 0:00:00]}  Nxg4 {[%clk 0:00:26]} 0-1


[Site "https://www.chess.com"]

[Event "Titled Tuesday Blitz May 16 Early 2023"]
[White "Estrada Nieto, Julian"]
[Black "Pandey Srishti"]
[WhiteFideId "5101018"]
[BlackFideId "35093290"]
[WhiteElo "2161"]
[BlackElo "2123"]
[Result "0-1"]
[Round "11"]
[TimeControl "180+2"]
[Date "2023.05.16"]
[WhiteClock "0:00:00"]
[BlackClock "0:00:13"]

1. e4 {[%clk 0:02:35]}  e5 {[%clk 0:02:57]} 2. Nf3 {[%clk 0:02:35]}  Nc6 {[%clk 0:02:57]} 3. Bb5 {[%clk 0:02:35]}  a6 {[%clk 0:02:53]} 4. Ba4 {[%clk 0:02:32]}  Nf6 {[%clk 0:02:53]} 5. O-O {[%clk 0:02:30]}  Be7 {[%clk 0:02:47]} 6. Re1 {[%clk 0:02:27]}  b5 {[%clk 0:02:46]} 7. Bb3 {[%clk 0:02:27]}  O-O {[%clk 0:02:45]} 8. a4 {[%clk 0:02:28]}  Rb8 {[%clk 0:02:44]} 9. axb5 {[%clk 0:02:27]}  axb5 {[%clk 0:02:45]} 10. c3 {[%clk 0:02:27]}  d5 {[%clk 0:02:44]} 11. exd5 {[%clk 0:02:22]}  Nxd5 {[%clk 0:02:45]} 12. Nxe5 {[%clk 0:02:22]}  Nxe5 {[%clk 0:02:46]} 13. Rxe5 {[%clk 0:02:22]}  c6 {[%clk 0:02:46]} 14. d4 {[%clk 0:02:21]}  Bd6 {[%clk 0:02:44]} 15. Re1 {[%clk 0:02:20]}  Qh4 {[%clk 0:02:44]} 16. g3 {[%clk 0:02:20]}  Qh3 {[%clk 0:02:44]} 17. Qd3 {[%clk 0:01:55]}  Bf5 {[%clk 0:02:35]} 18. Qf1 {[%clk 0:01:54]}  Qh5 {[%clk 0:02:30]} 19. Nd2 {[%clk 0:01:52]}  Rfe8 {[%clk 0:02:27]} 20. Bd1 {[%clk 0:01:34]}  Qg6 {[%clk 0:02:20]} 21. Nf3 {[%clk 0:01:27]}  Bd3 {[%clk 0:02:09]} 22. Be2 {[%clk 0:01:23]}  Be4 {[%clk 0:02:02]} 23. Bd2 {[%clk 0:01:09]}  Qf6 {[%clk 0:01:59]} 24. Nh4 {[%clk 0:01:04]}  g5 {[%clk 0:01:56]} 25. Ng2 {[%clk 0:01:01]}  Qg6 {[%clk 0:01:41]} 26. Ra6 {[%clk 0:00:48]}  h5 {[%clk 0:01:27]} 27. f3 {[%clk 0:00:38]}  Bc2 {[%clk 0:01:20]} 28. Rxc6 {[%clk 0:00:38]}  h4 {[%clk 0:01:15]} 29. f4 {[%clk 0:00:33]}  h3 {[%clk 0:00:52]} 30. Bf3 {[%clk 0:00:17]}  hxg2 {[%clk 0:00:49]} 31. Qxg2 {[%clk 0:00:18]}  Rxe1+ {[%clk 0:00:42]} 32. Bxe1 {[%clk 0:00:18]}  Ne7 {[%clk 0:00:41]} 33. Ra6 {[%clk 0:00:16]}  gxf4 {[%clk 0:00:41]} 34. gxf4 {[%clk 0:00:15]}  Qxg2+ {[%clk 0:00:39]} 35. Kxg2 {[%clk 0:00:16]}  Bxf4 {[%clk 0:00:38]} 36. Bh4 {[%clk 0:00:14]}  Ng6 {[%clk 0:00:36]} 37. Bf6 {[%clk 0:00:13]}  Bc1 {[%clk 0:00:32]} 38. Ra7 {[%clk 0:00:13]}  Bb3 {[%clk 0:00:27]} 39. Kg3 {[%clk 0:00:13]}  Bxb2 {[%clk 0:00:26]} 40. d5 {[%clk 0:00:11]}  b4 {[%clk 0:00:23]} 41. d6 {[%clk 0:00:10]}  Be6 {[%clk 0:00:19]} 42. d7 {[%clk 0:00:09]}  bxc3 {[%clk 0:00:15]} 43. d8=Q+ {[%clk 0:00:09]}  Rxd8 {[%clk 0:00:15]} 44. Bxd8 {[%clk 0:00:10]}  c2 {[%clk 0:00:15]} 45. Bg5 {[%clk 0:00:07]}  c1=Q {[%clk 0:00:13]} 46. Ra8+ {[%clk 0:00:07]}  Kg7 {[%clk 0:00:12]} 47. Bxc1 {[%clk 0:00:08]}  Bxc1 {[%clk 0:00:12]} 48. h4 {[%clk 0:00:08]}  Bf4+ {[%clk 0:00:13]} 49. Kf2 {[%clk 0:00:07]}  Nxh4 {[%clk 0:00:13]} 50. Ra4 {[%clk 0:00:06]}  Ng6 {[%clk 0:00:12]} 51. Be4 {[%clk 0:00:05]}  Bd6 {[%clk 0:00:12]} 52. Bxg6 {[%clk 0:00:05]}  Kxg6 {[%clk 0:00:12]} 53. Ra5 {[%clk 0:00:05]}  Bb4 {[%clk 0:00:12]} 54. Ra6 {[%clk 0:00:04]}  Bc5+ {[%clk 0:00:12]} 55. Kf3 {[%clk 0:00:03]}  Kf5 {[%clk 0:00:13]} 56. Rc6 {[%clk 0:00:03]}  Bd4 {[%clk 0:00:13]} 57. Rc7 {[%clk 0:00:02]}  Be5 {[%clk 0:00:13]} 58. Ke2 {[%clk 0:00:03]}  Bxc7 {[%clk 0:00:13]} 59. Kd3 {[%clk 0:00:00]}  Ke5 {[%clk 0:00:13]} 0-1


[Site "https://www.chess.com"]

[Event "Titled Tuesday Blitz May 16 Early 2023"]
[White "Bilan, Danila"]
[Black "Tarasova, Viktoriya"]
[WhiteFideId "24161918"]
[BlackFideId "4175840"]
[WhiteElo "2182"]
[BlackElo "2182"]
[Result "0-1"]
[Round "11"]
[TimeControl "180+2"]
[Date "2023.05.16"]
[WhiteClock "0:00:00"]
[BlackClock "0:00:25"]

1. d4 {[%clk 0:03:00]}  Nf6 {[%clk 0:02:59]} 2. Nf3 {[%clk 0:03:00]}  e6 {[%clk 0:03:00]} 3. g3 {[%clk 0:03:00]}  b6 {[%clk 0:03:00]} 4. Bg2 {[%clk 0:03:01]}  Bb7 {[%clk 0:03:00]} 5. O-O {[%clk 0:03:02]}  c5 {[%clk 0:03:01]} 6. c4 {[%clk 0:03:02]}  cxd4 {[%clk 0:03:01]} 7. Qxd4 {[%clk 0:03:03]}  Nc6 {[%clk 0:03:00]} 8. Qd1 {[%clk 0:02:58]}  Be7 {[%clk 0:03:00]} 9. Nc3 {[%clk 0:02:58]}  d6 {[%clk 0:02:59]} 10. Bf4 {[%clk 0:02:56]}  a6 {[%clk 0:02:55]} 11. Qd2 {[%clk 0:02:45]}  Qc7 {[%clk 0:02:55]} 12. Rad1 {[%clk 0:02:42]}  Rd8 {[%clk 0:02:54]} 13. Rfe1 {[%clk 0:02:25]}  O-O {[%clk 0:02:54]} 14. e4 {[%clk 0:02:13]}  Ne5 {[%clk 0:02:53]} 15. b3 {[%clk 0:02:08]}  Nfd7 {[%clk 0:02:44]} 16. h3 {[%clk 0:01:51]}  f5 {[%clk 0:02:27]} 17. Ng5 {[%clk 0:01:30]}  Nc5 {[%clk 0:01:22]} 18. b4 {[%clk 0:00:23]}  h6 {[%clk 0:01:22]} 19. bxc5 {[%clk 0:00:18]}  hxg5 {[%clk 0:01:20]} 20. cxb6 {[%clk 0:00:13]}  Qxc4 {[%clk 0:01:03]} 21. Be3 {[%clk 0:00:09]}  f4 {[%clk 0:01:03]} 22. Bd4 {[%clk 0:00:08]}  fxg3 {[%clk 0:00:57]} 23. fxg3 {[%clk 0:00:07]}  Nf3+ {[%clk 0:00:57]} 24. Bxf3 {[%clk 0:00:07]}  Rxf3 {[%clk 0:00:57]} 25. Re3 {[%clk 0:00:05]}  Rdf8 {[%clk 0:00:54]} 26. Kg2 {[%clk 0:00:04]}  R3f7 {[%clk 0:00:43]} 27. Ne2 {[%clk 0:00:02]}  e5 {[%clk 0:00:38]} 28. Ba1 {[%clk 0:00:02]}  Bxe4+ {[%clk 0:00:38]} 29. Kg1 {[%clk 0:00:02]}  Ba8 {[%clk 0:00:29]} 30. Nc3 {[%clk 0:00:01]}  d5 {[%clk 0:00:25]} 31. Nxd5 {[%clk 0:00:00]}  Bc5 {[%clk 0:00:25]} 0-1


[Site "https://www.chess.com"]

[Event "Titled Tuesday Blitz May 16 Early 2023"]
[White "Melikhov, Evgeny V."]
[Black "Ladan, Nicholas"]
[WhiteFideId "4122046"]
[BlackFideId "30918855"]
[WhiteElo "2158"]
[BlackElo "2167"]
[Result "1-0"]
[Round "11"]
[TimeControl "180+2"]
[Date "2023.05.16"]
[WhiteClock "0:00:08"]
[BlackClock "0:00:58"]

1. d4 {[%clk 0:03:00]}  d5 {[%clk 0:03:00]} 2. c4 {[%clk 0:03:00]}  e6 {[%clk 0:03:00]} 3. Nc3 {[%clk 0:03:01]}  c6 {[%clk 0:03:00]} 4. e3 {[%clk 0:03:00]}  Nf6 {[%clk 0:03:00]} 5. Nf3 {[%clk 0:03:00]}  Nbd7 {[%clk 0:03:00]} 6. Bd3 {[%clk 0:03:00]}  Bd6 {[%clk 0:03:01]} 7. O-O {[%clk 0:03:00]}  O-O {[%clk 0:03:01]} 8. e4 {[%clk 0:03:00]}  dxe4 {[%clk 0:03:00]} 9. Nxe4 {[%clk 0:03:01]}  Nxe4 {[%clk 0:03:00]} 10. Bxe4 {[%clk 0:03:02]}  f5 {[%clk 0:03:00]} 11. Bc2 {[%clk 0:03:01]}  Nf6 {[%clk 0:02:59]} 12. Qe2 {[%clk 0:03:00]}  b6 {[%clk 0:02:56]} 13. Rd1 {[%clk 0:02:54]}  Re8 {[%clk 0:02:56]} 14. Ne5 {[%clk 0:02:41]}  Bb7 {[%clk 0:02:54]} 15. c5 {[%clk 0:02:41]}  Bc7 {[%clk 0:02:52]} 16. Bg5 {[%clk 0:02:08]}  h6 {[%clk 0:02:50]} 17. Bf4 {[%clk 0:01:44]}  Nd5 {[%clk 0:02:46]} 18. Bd2 {[%clk 0:01:25]}  Qf6 {[%clk 0:02:39]} 19. a4 {[%clk 0:01:20]}  bxc5 {[%clk 0:02:37]} 20. Nd7 {[%clk 0:01:11]}  Qf7 {[%clk 0:02:35]} 21. Nxc5 {[%clk 0:01:10]}  Bc8 {[%clk 0:02:27]} 22. Ra3 {[%clk 0:01:03]}  e5 {[%clk 0:02:27]} 23. Re1 {[%clk 0:00:42]}  e4 {[%clk 0:02:22]} 24. f3 {[%clk 0:00:32]}  Qf6 {[%clk 0:02:14]} 25. Qc4 {[%clk 0:00:21]}  Qh4 {[%clk 0:02:08]} 26. h3 {[%clk 0:00:16]}  Kh8 {[%clk 0:01:37]} 27. fxe4 {[%clk 0:00:15]}  fxe4 {[%clk 0:01:36]} 28. Rxe4 {[%clk 0:00:15]}  Rxe4 {[%clk 0:01:35]} 29. Bxe4 {[%clk 0:00:12]}  Nf4 {[%clk 0:01:13]} 30. Rf3 {[%clk 0:00:11]}  g5 {[%clk 0:01:05]} 31. Qf7 {[%clk 0:00:10]}  Ne2+ {[%clk 0:01:00]} 32. Kf1 {[%clk 0:00:08]}  Ng3+ {[%clk 0:00:59]} 33. Rxg3 {[%clk 0:00:08]}  Qxg3 {[%clk 0:00:58]} 34. Qh7# {[%clk 0:00:08]} 1-0


[Site "https://www.chess.com"]

[Event "Titled Tuesday Blitz May 16 Early 2023"]
[White "Yurasova, Daria"]
[Black "Buchenau, Frank"]
[WhiteFideId "34146919"]
[BlackFideId "4604350"]
[WhiteElo "2109"]
[BlackElo "2157"]
[Result "1-0"]
[Round "11"]
[TimeControl "180+2"]
[Date "2023.05.16"]
[WhiteClock "0:00:31"]
[BlackClock "0:00:00"]

1. d4 {[%clk 0:03:00]}  e6 {[%clk 0:02:57]} 2. c4 {[%clk 0:02:59]}  Nf6 {[%clk 0:02:57]} 3. Nf3 {[%clk 0:02:57]}  b6 {[%clk 0:02:57]} 4. g3 {[%clk 0:02:58]}  Bb7 {[%clk 0:02:57]} 5. Bg2 {[%clk 0:02:58]}  Be7 {[%clk 0:02:57]} 6. O-O {[%clk 0:02:59]}  O-O {[%clk 0:02:57]} 7. Nc3 {[%clk 0:02:59]}  Ne4 {[%clk 0:02:57]} 8. Qc2 {[%clk 0:02:59]}  Nxc3 {[%clk 0:02:56]} 9. bxc3 {[%clk 0:03:00]}  Nc6 {[%clk 0:02:55]} 10. a4 {[%clk 0:03:00]}  d6 {[%clk 0:02:54]} 11. e4 {[%clk 0:02:59]}  Na5 {[%clk 0:02:52]} 12. Nd2 {[%clk 0:02:51]}  e5 {[%clk 0:02:48]} 13. Ba3 {[%clk 0:02:51]}  Bg5 {[%clk 0:02:25]} 14. Rfd1 {[%clk 0:02:47]}  Bxd2 {[%clk 0:02:22]} 15. Qxd2 {[%clk 0:02:36]}  Nb3 {[%clk 0:02:05]} 16. Qc2 {[%clk 0:02:32]}  Nxa1 {[%clk 0:02:05]} 17. Rxa1 {[%clk 0:02:33]}  c5 {[%clk 0:01:58]} 18. d5 {[%clk 0:02:28]}  Bc8 {[%clk 0:01:52]} 19. Bc1 {[%clk 0:02:27]}  f5 {[%clk 0:01:51]} 20. a5 {[%clk 0:02:24]}  bxa5 {[%clk 0:01:47]} 21. Qa4 {[%clk 0:02:20]}  Rb8 {[%clk 0:01:40]} 22. f4 {[%clk 0:01:59]}  Bd7 {[%clk 0:01:31]} 23. Qa2 {[%clk 0:01:59]}  a4 {[%clk 0:01:25]} 24. fxe5 {[%clk 0:01:58]}  dxe5 {[%clk 0:01:25]} 25. Be3 {[%clk 0:01:59]}  Qb6 {[%clk 0:01:08]} 26. Qa3 {[%clk 0:01:57]}  Rfc8 {[%clk 0:01:06]} 27. Bh3 {[%clk 0:01:54]}  g6 {[%clk 0:00:51]} 28. Rf1 {[%clk 0:01:43]}  Qb3 {[%clk 0:00:43]} 29. Qa1 {[%clk 0:01:17]}  Qxc4 {[%clk 0:00:36]} 30. exf5 {[%clk 0:01:16]}  Qe4 {[%clk 0:00:29]} 31. Bh6 {[%clk 0:01:09]}  Bxf5 {[%clk 0:00:26]} 32. Bxf5 {[%clk 0:00:59]}  gxf5 {[%clk 0:00:25]} 33. Qc1 {[%clk 0:00:59]}  f4 {[%clk 0:00:20]} 34. Qd1 {[%clk 0:00:56]}  Rd8 {[%clk 0:00:17]} 35. gxf4 {[%clk 0:00:48]}  Qg6+ {[%clk 0:00:17]} 36. Bg5 {[%clk 0:00:44]}  h6 {[%clk 0:00:16]} 37. Kh1 {[%clk 0:00:41]}  Rb2 {[%clk 0:00:12]} 38. f5 {[%clk 0:00:32]}  Qh5 {[%clk 0:00:00]} 39. Qxh5 {[%clk 0:00:31]} 1-0


[Site "https://www.chess.com"]